fUSD/lending_fUSD_20250213
["ID","MTS","AMOUNT","RATE_DAILY","PERIOD"]
[353014041,1739485948184,-3342.84,0.00015013,2]
[353014042,1739485948194,-1308.38,0.00015013,2]
[353014043,1739485948205,-683.58,0.00015013,2]
[353014044,1739485948214,-3531.08,0.00015013,2]
[353014045,1739485948224,-1653.81,0.00015013,2]
[353014046,1739485948234,-553.67,0.00015013,2]
[353014047,1739485948244,-988.77,0.00015013,2]
[353014048,1739485948254,-2226.29,0.00015013,2]
[353014049,1739485948264,-1807.21,0.00015013,2]
[353014050,1739485948274,-969.77,0.00015013,2]
[353014051,1739485948285,-500.0,0.00015013,2]
[353014052,1739485948295,-3314.33,0.00015013,2]
[353014053,1739485948306,-1796.12,0.00015013,2]
[353014054,1739485948316,-3189.0,0.00015013,2]
[353014055,1739485948326,-803.11,0.00015013,2]
[353014056,1739485948336,-607.85,0.00015013,2]
[353014057,1739485948347,-761.91,0.00015013,2]
[353014058,1739485948357,-621.21,0.00015013,2]
[353014059,1739485948368,-1972.85,0.00015013,2]
[353014060,1739485948379,-3990.94,0.00015013,2]
[353014061,1739485948389,-523.93,0.00015013,2]
[353014062,1739485948399,-719.42,0.00015013,2]
[353014063,1739485948409,-749.77,0.00015013,2]
[353014064,1739485948419,-1753.67,0.00015013,2]
[353014065,1739485948429,-2497.17,0.00015013,2]
[353014066,1739485948439,-500.0,0.00015013,2]
[353014067,1739485948449,-1325.27,0.00015013,2]
[353014068,1739485948459,-3120.71,0.00015013,2]
[353014069,1739485948468,-511.69,0.00015013,2]
[353014070,1739485948479,-3912.39,0.00015013,2]
[353014071,1739485948489,-635.38,0.00015013,2]
[353014072,1739485948499,-1203.12,0.00015013,2]
[353014073,1739485948509,-563.81769377,0.00015013,2]
[353014074,1739485948519,-1628.89,0.00015013,2]
[353014075,1739485948528,-1174.26,0.00015013,2]
[353014076,1739485948538,-5014.48,0.00015013,2]
[353014077,1739485948548,-591.53,0.00015013,2]
[353014078,1739485948558,-2834.89,0.00015013,2]
[353014079,1739485948568,-1129.98,0.00015013,2]
[353014080,1739485948802,-4012.08,0.00015013,2]
[353014081,1739485948812,-1877.06,0.00015013,2]
[353014082,1739485948821,-2305.18,0.00015013,2]
[353014083,1739485948831,-3400.07,0.00015013,2]
[353014084,1739485948842,-1278.06,0.00015013,2]
[353014085,1739485948851,-2677.19,0.00015013,2]
[353014086,1739485948861,-2091.53,0.00015013,2]
[353014087,1739485948870,-10601.94,0.00015013,2]
[353014088,1739485948881,-6319.86,0.00015013,2]
[353014089,1739485948891,-1914.19,0.00015013,2]
[353014090,1739485948900,-2222.28,0.00015013,2]
[353014091,1739485948910,-1244.36,0.00015013,2]
[353014092,1739485948919,-2434.73,0.00015013,2]
[353014093,1739485948929,-1301.75,0.00015013,2]
[353014094,1739485948938,-3378.69,0.00015013,2]
[353014095,1739485948948,-1073.98,0.00015013,2]
[353014096,1739485948958,-500.0,0.00015013,2]
[353014097,1739485948967,-1003.25,0.00015013,2]
[353014098,1739485948977,-1894.84,0.00015013,2]
[353014099,1739485948986,-3213.97,0.00015013,2]
[353014100,1739485948996,-1618.51,0.00015013,2]
[353014101,1739485949006,-3027.83,0.00015013,2]
[353014102,1739485949016,-1463.57,0.00015013,2]
[353014103,1739485949026,-1866.04,0.00015013,2]
[353014104,1739485949037,-551.57,0.00015013,2]
[353014105,1739485949048,-3405.09,0.00015013,2]
[353014106,1739485949057,-3794.0,0.00015013,2]
[353014107,1739485949067,-3558.25,0.00015013,2]
[353014108,1739485949077,-1199.38,0.00015013,2]
[353014109,1739485949087,-5141.78,0.00015013,2]
[353014110,1739485949097,-5036.58,0.00015013,2]
[353014111,1739485949107,-972.02,0.00015013,2]
[353014112,1739485949120,-1457.37,0.00015013,2]
[353014113,1739485949130,-1646.26,0.00015013,2]
[353014114,1739485949139,-1023.76,0.00015013,2]
[353014115,1739485949149,-4943.34,0.00015013,2]
[353014116,1739485949158,-973.76,0.00015013,2]
[353014117,1739485949168,-1078.92,0.00015013,2]
[353014118,1739485949178,-3488.7,0.00015013,2]
[353014119,1739485949189,-9947.08,0.00015013,2]
[353014120,1739485949199,-1167.35,0.00015013,2]
[353014121,1739485949209,-1925.44,0.00015013,2]
[353014122,1739485949219,-3871.01,0.00015013,2]
[353014123,1739485949229,-3374.31,0.00015013,2]
[353014124,1739485949239,-3262.34,0.00015013,2]
[353014125,1739485949249,-3751.7,0.00015013,2]
[353014126,1739485949259,-2216.47,0.00015013,2]
[353014127,1739485949269,-500.0,0.00015013,2]
[353014128,1739485949280,-500.0,0.00015013,2]
[353014129,1739485949290,-2198.57,0.00015013,2]
[353014130,1739485949300,-1272.94,0.00015013,2]
[353014131,1739485949310,-3047.23,0.00015013,2]
[353014132,1739485949320,-4282.13,0.00015013,2]
[353014133,1739485949330,-1579.29,0.00015013,2]
[353014134,1739485949340,-2262.09,0.00015013,2]
[353014135,1739485949350,-2034.1,0.00015013,2]
[353014136,1739485949359,-4796.16,0.00015013,2]
[353014137,1739485949368,-621.58,0.00015013,2]
[353014138,1739485949378,-4188.27,0.00015013,2]
[353014139,1739485949387,-2900.35,0.00015013,2]
[353014140,1739485949397,-5302.96,0.00015013,2]
[353014141,1739485949407,-3352.12,0.00015013,2]
[353014142,1739485949416,-525.01,0.00015013,2]
[353014143,1739485949426,-2517.29,0.00015013,2]
[353014144,1739485949437,-3510.5,0.00015013,2]
[353014145,1739485949446,-1911.76,0.00015013,2]
[353014146,1739485949455,-3186.25,0.00015013,2]
[353014147,1739485949465,-1411.53,0.00015013,2]
[353014148,1739485949475,-5245.34,0.00015013,2]
[353014149,1739485949484,-4040.71,0.00015013,2]
[353014150,1739485949493,-2434.4,0.00015013,2]
[353014151,1739485949503,-3997.95,0.00015013,2]
[353014152,1739485949513,-797.43,0.00015013,2]
[353014153,1739485949522,-3418.06,0.00015013,2]
[353014154,1739485949532,-3613.39,0.00015013,2]
[353014155,1739485949541,-566.64,0.00015013,2]
[353014156,1739485949551,-8838.73,0.00015013,2]
[353014157,1739485949560,-624.99,0.00015013,2]
[353014158,1739485949570,-720.74,0.00015013,2]
[353014159,1739485949579,-3533.94,0.00015013,2]
[353014160,1739485949588,-3776.32,0.00015013,2]
[353014161,1739485949598,-522.13,0.00015013,2]
[353014162,1739485949607,-4171.69,0.00015013,2]
[353014163,1739485949617,-2767.11,0.00015013,2]
[353014164,1739485949626,-500.0,0.00015013,2]
[353014165,1739485949636,-1300.63,0.00015013,2]
[353014166,1739485949645,-3523.18,0.00015013,2]
[353014167,1739485949655,-4629.45,0.00015013,2]
[353014168,1739485949664,-2317.93,0.00015013,2]
[353014169,1739485949674,-542.74,0.00015013,2]
[353014170,1739485949684,-6501.79,0.00015013,2]
[353014171,1739485949694,-649.96,0.00015013,2]
[353014172,1739485949704,-2852.77,0.00015013,2]
[353014173,1739485949713,-4468.57,0.00015013,2]
[353014174,1739485949722,-773.78,0.00015013,2]
[353014175,1739485949732,-724.47,0.00015013,2]
[353014176,1739485949742,-2513.38,0.00015013,2]
[353014177,1739485949751,-4071.43,0.00015013,2]
[353014178,1739485949760,-3680.29,0.00015013,2]
[353014179,1739485949769,-3113.41,0.00015013,2]
[353014180,1739485949779,-964.12,0.00015013,2]
[353014181,1739485949788,-318.77182894,0.00015013,2]
[353014182,1739485949798,-1523.71,0.00015013,2]
[353014183,1739485949807,-525.45,0.00015013,2]
[353014184,1739485949816,-741.53,0.00015013,2]
[353014185,1739485949825,-2768.98,0.00015013,2]
[353014186,1739485949835,-1470.77,0.00015013,2]
[353014187,1739485949844,-3441.38,0.00015013,2]
[353014188,1739485949853,-4132.51,0.00015013,2]
[353014189,1739485949863,-1712.88,0.00015013,2]
[353014190,1739485949872,-4938.55,0.00015013,2]
[353014191,1739485949881,-2124.68,0.00015013,2]
[353014192,1739485949890,-1789.26,0.00015013,2]
[353014193,1739485949899,-1226.02,0.00015013,2]
[353014194,1739485949911,-1451.96,0.00015013,2]
[353014195,1739485949920,-824.05,0.00015013,2]
[353014196,1739485949931,-3558.23,0.00015013,2]
[353014197,1739485949941,-4167.53,0.00015013,2]
[353014198,1739485949950,-880.79,0.00015013,2]
[353014199,1739485949959,-1838.56,0.00015013,2]
[353014200,1739485949970,-1936.97,0.00015013,2]
[353014201,1739485949980,-2962.2,0.00015013,2]
[353014202,1739485949990,-598.78,0.00015013,2]
[353014203,1739485949999,-2265.71,0.00015068,3]
[353014204,1739485950009,-999.0,0.00015068,2]
[353014205,1739485950019,-300.0,0.00015068,2]
[353014206,1739485950033,-234.0,0.00015079,3]
[353014207,1739485950044,-1124.476697,0.00015095,2]
[353014208,1739485950053,-1030.770305,0.00015095,2]
[353014209,1739485950063,-1369.077968,0.00015095,2]
[353014210,1739485950073,-500.0,0.00015095,2]
[353014211,1739485950083,-781.27,0.00015095,2]
[353014212,1739485950091,-640.12,0.00015095,2]
[353014213,1739485950102,-571.73,0.00015095,2]
[353014214,1739485950114,-767.83,0.00015095,2]
[353014215,1739485950125,-517.58,0.00015095,2]
[353014216,1739485950135,-748.33,0.00015095,2]
[353014217,1739485950144,-1019.36,0.00015095,2]
[353014218,1739485950154,-500.0,0.00015095,2]
[353014219,1739485950164,-536.11,0.00015095,2]
[353014220,1739485950174,-853.88,0.00015095,2]
[353014221,1739485950184,-500.0,0.00015095,2]
[353014222,1739485950194,-1237.75,0.00015095,2]
[353014223,1739485950205,-500.0,0.00015095,2]
[353014224,1739485950215,-823.6,0.00015095,2]
[353014225,1739485950225,-588.86,0.00015095,2]
[353014226,1739485950234,-583.03,0.00015095,2]
[353014227,1739485950243,-839.01,0.00015095,2]
[353014228,1739485950252,-632.18,0.00015095,2]
[353014229,1739485950261,-1100.34,0.00015095,2]
[353014230,1739485950271,-500.0,0.00015095,2]
[353014231,1739485950279,-907.89,0.00015095,2]
[353014232,1739485950289,-380.38356356,0.00015095,2]
[353014233,1739485950298,-791.76,0.00015095,2]
[353014234,1739485950307,-500.0,0.00015095,2]
[353014235,1739485950316,-1002.52,0.00015095,2]
[353014236,1739485950325,-673.2,0.00015095,2]
[353014237,1739485950335,-864.99,0.00015095,2]
[353014238,1739485950344,-556.42,0.00015095,2]
[353014239,1739485950353,-606.37,0.00015095,2]
[353014240,1739485950363,-500.0,0.00015095,2]
[353014241,1739485950374,-500.0,0.00015095,2]
[353014242,1739485950383,-542.4,0.00015095,2]
[353014243,1739485950393,-500.0,0.00015095,2]
[353014244,1739485950403,-606.89,0.00015095,2]
[353014245,1739485950412,-551.03,0.00015095,2]
[353014246,1739485950422,-500.0,0.00015095,2]
[353014247,1739485950434,-571.58,0.00015095,2]
[353014248,1739485950443,-507.69,0.00015095,2]
[353014249,1739485950453,-477.63780291,0.00015095,2]
[353014250,1739485950462,-500.0,0.00015095,2]
[353014251,1739485950472,-150.26240696,0.00015095,2]
[353014252,1739485950482,-500.0,0.00015095,2]
[353014253,1739485950491,-500.0,0.00015095,2]
[353014254,1739485950501,-2208.67,0.00015095,2]
[353014255,1739485950511,-543.67,0.00015095,2]
[353014256,1739485950521,-653.16,0.00015095,2]
[353014257,1739485950530,-823.62,0.00015095,2]
[353014258,1739485950540,-638.54,0.00015095,2]
[353014259,1739485950549,-1041.6,0.00015095,2]
[353014260,1739485950559,-500.0,0.00015095,2]
[353014261,1739485950569,-2539.19,0.00015095,2]
[353014262,1739485950578,-500.0,0.00015095,2]
[353014263,1739485950587,-3052.42,0.00015095,2]
[353014264,1739485950597,-514.61,0.00015095,2]
[353014265,1739485950606,-1525.33,0.00015095,2]
[353014266,1739485950616,-867.43,0.00015095,2]
[353014267,1739485950625,-1400.14,0.00015095,2]
[353014268,1739485950634,-917.77,0.00015095,2]
[353014269,1739485950643,-1241.27,0.00015095,2]
[353014270,1739485950653,-991.55,0.00015095,2]
[353014271,1739485950662,-566.52,0.00015095,2]
[353014272,1739485950672,-500.0,0.00015095,2]
[353014273,1739485950683,-500.0,0.00015095,2]
[353014274,1739485950693,-500.0,0.00015095,2]
[353014275,1739485950703,-633.2,0.00015095,2]
[353014276,1739485950714,-717.52,0.00015095,2]
[353014277,1739485950723,-689.5,0.00015095,2]
[353014278,1739485950733,-965.58,0.00015095,2]
[353014279,1739485950743,-756.27,0.00015095,2]
[353014280,1739485950752,-687.68,0.00015095,2]
[353014281,1739485950762,-1501.09,0.00015095,2]
[353014282,1739485950772,-1669.58,0.00015095,2]
[353014283,1739485950781,-825.83,0.00015095,2]
[353014284,1739485950791,-1337.74,0.00015095,2]
[353014285,1739485950801,-1371.86,0.00015095,2]
[353014286,1739485950811,-500.0,0.00015095,2]
[353014287,1739485950820,-500.0,0.00015095,2]
[353014288,1739485950830,-1702.26,0.00015095,2]
[353014289,1739485950840,-500.0,0.00015095,2]
[353014290,1739485950851,-1754.49,0.00015095,2]
[353014291,1739485950860,-1078.61,0.00015095,2]
[353014292,1739485950870,-869.45,0.00015095,2]
[353014293,1739485950879,-1158.07,0.00015095,2]
[353014294,1739485950889,-500.0,0.00015095,2]
[353014295,1739485950899,-991.47,0.00015095,2]
[353014296,1739485950909,-1684.45,0.00015095,2]
[353014297,1739485950919,-526.8,0.00015095,2]
[353014298,1739485950930,-660.93,0.00015095,2]
[353014299,1739485950941,-1302.35,0.00015095,2]
[353014300,1739485950951,-854.62,0.00015095,2]
[353014301,1739485950960,-2012.26,0.00015095,2]
[353014302,1739485950970,-504.56,0.00015095,2]
[353014303,1739485950980,-763.9,0.00015095,2]
[353014304,1739485950989,-696.46,0.00015095,2]
[353014305,1739485950999,-835.17,0.00015095,2]
[353014306,1739485951009,-692.97,0.00015095,2]
[353014307,1739485951019,-566.32,0.00015095,2]
[353014308,1739485951029,-857.95,0.00015095,2]
[353014309,1739485951041,-2021.1,0.00015095,2]
[353014310,1739485951051,-702.16,0.00015095,2]
[353014311,1739485951061,-683.82,0.00015095,2]
[353014312,1739485951071,-1015.7,0.00015095,2]
[353014313,1739485951081,-713.38,0.00015095,2]
[353014314,1739485951091,-500.0,0.00015095,2]
[353014315,1739485951102,-1424.92,0.00015095,2]
[353014316,1739485951112,-500.0,0.00015095,2]
[353014317,1739485951122,-811.86,0.00015095,2]
[353014318,1739485951217,-988.11,0.00015095,2]
[353014319,1739485951228,-1906.79,0.00015095,2]
[353014320,1739485951239,-1427.42,0.00015095,2]
[353014321,1739485951248,-524.63,0.00015095,2]
[353014322,1739485951259,-500.0,0.00015095,2]
[353014323,1739485951268,-881.54,0.00015095,2]
[353014324,1739485951279,-865.9,0.00015095,2]
[353014325,1739485951288,-1372.61,0.00015095,2]
[353014326,1739485951297,-758.33,0.00015095,2]
[353014327,1739485951306,-1840.97,0.00015095,2]
[353014328,1739485951315,-1636.34,0.00015095,2]
[353014329,1739485951325,-1035.24,0.00015095,2]
[353014330,1739485951335,-1782.82,0.00015095,2]
[353014331,1739485951345,-557.25,0.00015095,2]
[353014332,1739485951355,-687.87,0.00015095,2]
[353014333,1739485951366,-888.74,0.00015095,2]
[353014334,1739485951375,-500.0,0.00015095,2]
[353014335,1739485951384,-1131.23,0.00015095,2]
[353014336,1739485951394,-548.09,0.00015095,2]
[353014337,1739485951403,-976.11,0.00015095,2]
[353014338,1739485951412,-1065.2,0.00015095,2]
[353014339,1739485951422,-1519.15,0.00015095,2]
[353014340,1739485951433,-825.94,0.00015095,2]
[353014341,1739485951442,-717.12,0.00015095,2]
[353014342,1739485951451,-718.5,0.00015095,2]
[353014343,1739485951461,-500.0,0.00015095,2]
[353014344,1739485951470,-1464.62,0.00015095,2]
[353014345,1739485951480,-1779.83,0.00015095,2]
[353014346,1739485951490,-551.0,0.00015095,2]
[353014347,1739485951499,-1813.74,0.00015095,2]
[353014348,1739485951510,-558.37,0.00015095,2]
[353014349,1739485951520,-807.26,0.00015095,2]
[353014350,1739485951530,-1306.72,0.00015095,2]
[353014351,1739485951539,-1123.76,0.00015095,2]
[353014352,1739485951550,-576.78364097,0.00015095,2]
[353014353,1739485951559,-156.890312,0.00015095,2]
[353014354,1739485951569,-844.9,0.00015095,2]
[353014355,1739485951579,-2257.68,0.00015095,2]
[353014356,1739485951588,-831.33,0.00015095,2]
[353014357,1739485951598,-923.9,0.00015095,2]
[353014358,1739485951607,-500.0,0.00015095,2]
[353014359,1739485951617,-1270.71,0.00015095,2]
[353014360,1739485951627,-897.69,0.00015095,2]
[353014361,1739485951637,-853.17,0.00015095,2]
[353014362,1739485951647,-840.31,0.00015095,2]
[353014363,1739485951657,-1705.94,0.00015095,2]
[353014364,1739485951667,-876.71,0.00015095,2]
[353014365,1739485951677,-885.91,0.00015095,2]
[353014366,1739485951688,-500.0,0.00015095,2]
[353014367,1739485951699,-2161.09,0.00015095,2]
[353014368,1739485951708,-500.0,0.00015095,2]
[353014369,1739485951718,-3040.0,0.00015095,2]
[353014370,1739485951728,-1238.79,0.00015095,2]
[353014371,1739485951738,-1105.8,0.00015095,2]
[353014372,1739485951747,-2265.19,0.00015095,2]
[353014373,1739485951757,-1322.86,0.00015095,2]
[353014374,1739485951766,-906.34,0.00015095,2]
[353014375,1739485951775,-523.6,0.00015095,2]
[353014376,1739485951786,-646.18,0.00015095,2]
[353014377,1739485951796,-893.53,0.00015095,2]
[353014378,1739485951805,-970.55,0.00015095,2]
[353014379,1739485951815,-702.31,0.00015095,2]
[353014380,1739485951824,-553.1,0.00015095,2]
[353014381,1739485951834,-2482.92,0.00015095,2]
[353014382,1739485951844,-250.23007569,0.00015095,2]
[353014383,1739485951854,-858.18,0.00015095,2]
[353014384,1739485951863,-669.76,0.00015095,2]
[353014385,1739485951873,-710.97,0.00015095,2]
[353014386,1739485951883,-1892.5,0.00015095,2]
[353014387,1739485951893,-739.26,0.00015095,2]
[353014388,1739485951903,-1559.26,0.00015095,2]
[353014389,1739485951912,-1326.07,0.00015095,2]
[353014390,1739485951922,-602.38,0.00015095,2]
[353014391,1739485951933,-835.99,0.00015095,2]
[353014392,1739485951942,-1789.82,0.00015095,2]
[353014393,1739485951952,-500.0,0.00015095,2]
[353014394,1739485951962,-1318.31,0.00015095,2]
[353014395,1739485951972,-551.86,0.00015095,2]
[353014396,1739485951982,-864.67,0.00015095,2]
[353014397,1739485951991,-500.0,0.00015095,2]
[353014398,1739485952001,-1141.82,0.00015095,2]
[353014399,1739485952011,-1994.16,0.00015095,2]
[353014400,1739485952020,-812.11,0.00015095,2]
[353014401,1739485952031,-859.06,0.00015095,2]
[353014402,1739485952045,-1079.19,0.00015095,2]
[353014403,1739485952055,-1941.15,0.00015095,2]
[353014404,1739485952065,-2409.32,0.00015095,2]
[353014405,1739485952075,-592.63,0.00015095,2]
[353014406,1739485952085,-900.38,0.00015095,2]
[353014407,1739485952095,-156.890312,0.00015095,2]
[353014408,1739485952105,-1741.64,0.00015095,2]
[353014409,1739485952115,-1010.42,0.00015095,2]
[353014410,1739485952125,-1201.88,0.00015095,2]
[353014411,1739485952136,-730.65,0.00015095,2]
[353014412,1739485952145,-2964.55,0.00015095,2]
[353014413,1739485952155,-645.62,0.00015095,2]
[353014414,1739485952165,-1693.27,0.00015095,2]
[353014415,1739485952175,-765.27,0.00015095,2]
[353014416,1739485952186,-1023.18,0.00015095,2]
[353014417,1739485952195,-1983.35,0.00015095,2]
[353014418,1739485952205,-1199.21,0.00015095,2]
[353014419,1739485952214,-1991.14,0.00015095,2]
[353014420,1739485952224,-533.09,0.00015095,2]
[353014421,1739485952234,-500.0,0.00015095,2]
[353014422,1739485952243,-4281.75,0.00015095,2]
[353014423,1739485952253,-2700.69,0.00015095,2]
[353014424,1739485952262,-1072.56,0.00015095,2]
[353014425,1739485952272,-2181.51,0.00015095,2]
[353014426,1739485952282,-2105.12,0.00015095,2]
[353014427,1739485952291,-2362.29,0.00015095,2]
[353014428,1739485952300,-797.65,0.00015095,2]
[353014429,1739485952310,-1372.43,0.00015095,2]
[353014430,1739485952319,-500.0,0.00015095,2]
[353014431,1739485952328,-2270.27,0.00015095,2]
[353014432,1739485952338,-701.26,0.00015095,2]
[353014433,1739485952348,-1635.6,0.00015095,2]
[353014434,1739485952357,-1210.46,0.00015095,2]
[353014435,1739485952367,-1551.99,0.00015095,2]
[353014436,1739485952376,-4033.58,0.00015095,2]
[353014437,1739485952385,-2766.93,0.00015095,2]
[353014438,1739485952395,-2765.04,0.00015095,2]
[353014439,1739485952404,-660.75,0.00015095,2]
[353014440,1739485952414,-2103.7,0.00015095,2]
[353014441,1739485952423,-924.48,0.00015095,2]
[353014442,1739485952434,-794.33,0.00015095,2]
[353014443,1739485952444,-1140.21,0.00015095,2]
[353014444,1739485952453,-1374.92,0.00015095,2]
[353014445,1739485952462,-500.0,0.00015095,2]
[353014446,1739485952471,-1394.91,0.00015095,2]
[353014447,1739485952482,-2230.12,0.00015095,2]
[353014448,1739485952492,-500.0,0.00015095,2]
[353014449,1739485952502,-878.31,0.00015095,2]
[353014450,1739485952511,-1071.07,0.00015095,2]
[353014451,1739485952521,-3342.84,0.00015095,2]
[353014452,1739485952530,-1308.38,0.00015095,2]
[353014453,1739485952540,-683.58,0.00015095,2]
[353014454,1739485952550,-3531.08,0.00015095,2]
[353014455,1739485952559,-1653.81,0.00015095,2]
[353014456,1739485952569,-553.67,0.00015095,2]
[353014457,1739485952578,-988.77,0.00015095,2]
[353014458,1739485952587,-2226.29,0.00015095,2]
[353014459,1739485952597,-1807.21,0.00015095,2]
[353014460,1739485952607,-969.77,0.00015095,2]
[353014461,1739485952616,-500.0,0.00015095,2]
[353014462,1739485952626,-3314.33,0.00015095,2]
[353014463,1739485952636,-1796.12,0.00015095,2]
[353014464,1739485952645,-3189.0,0.00015095,2]
[353014465,1739485952655,-803.11,0.00015095,2]
[353014466,1739485952664,-607.85,0.00015095,2]
[353014467,1739485952674,-761.91,0.00015095,2]
[353014468,1739485952686,-621.21,0.00015095,2]
[353014469,1739485952696,-1972.85,0.00015095,2]
[353014470,1739485952706,-3990.94,0.00015095,2]
[353014471,1739485952716,-523.93,0.00015095,2]
[353014472,1739485952726,-719.42,0.00015095,2]
[353014473,1739485952736,-749.77,0.00015095,2]
[353014474,1739485952745,-1753.67,0.00015095,2]
[353014475,1739485952755,-2497.17,0.00015095,2]
[353014476,1739485952765,-500.0,0.00015095,2]
[353014477,1739485952774,-1325.27,0.00015095,2]
[353014478,1739485952783,-3120.71,0.00015095,2]
[353014479,1739485952792,-511.69,0.00015095,2]
[353014480,1739485952803,-3912.39,0.00015095,2]
[353014481,1739485952812,-635.38,0.00015095,2]
[353014482,1739485952822,-1203.12,0.00015095,2]
[353014483,1739485952832,-1628.89,0.00015095,2]
[353014484,1739485952841,-1174.26,0.00015095,2]
[353014485,1739485952851,-5014.48,0.00015095,2]
[353014486,1739485952860,-591.53,0.00015095,2]
[353014487,1739485952870,-2834.89,0.00015095,2]
[353014488,1739485952879,-1129.98,0.00015095,2]
[353014489,1739485952888,-4012.08,0.00015095,2]
[353014490,1739485952898,-1877.06,0.00015095,2]
[353014491,1739485952909,-2305.18,0.00015095,2]
[353014492,1739485952919,-3400.07,0.00015095,2]
[353014493,1739485952928,-1278.06,0.00015095,2]
[353014494,1739485952939,-2677.19,0.00015095,2]
[353014495,1739485952948,-2091.53,0.00015095,2]
[353014496,1739485952958,-10601.94,0.00015095,2]
[353014497,1739485952968,-6319.86,0.00015095,2]
[353014498,1739485952978,-1914.19,0.00015095,2]
[353014499,1739485952987,-2222.28,0.00015095,2]
[353014500,1739485952997,-1244.36,0.00015095,2]
[353014501,1739485953007,-2434.73,0.00015095,2]
[353014502,1739485953017,-1301.75,0.00015095,2]
[353014503,1739485953027,-3378.69,0.00015095,2]
[353014504,1739485953040,-1073.98,0.00015095,2]
[353014505,1739485953050,-500.0,0.00015095,2]
[353014506,1739485953059,-1003.25,0.00015095,2]
[353014507,1739485953069,-1894.84,0.00015095,2]
[353014508,1739485953080,-3213.97,0.00015095,2]
[353014509,1739485953092,-1618.51,0.00015095,2]
[353014510,1739485953102,-3027.83,0.00015095,2]
[353014511,1739485953112,-1463.57,0.00015095,2]
[353014512,1739485953123,-1866.04,0.00015095,2]
[353014513,1739485953134,-551.57,0.00015095,2]
[353014514,1739485953144,-3405.09,0.00015095,2]
[353014515,1739485953154,-3794.0,0.00015095,2]
[353014516,1739485953165,-3558.25,0.00015095,2]
[353014517,1739485953176,-1199.38,0.00015095,2]
[353014518,1739485953191,-5141.78,0.00015095,2]
[353014519,1739485953201,-5036.58,0.00015095,2]
[353014520,1739485953212,-972.02,0.00015095,2]
[353014521,1739485953222,-1457.37,0.00015095,2]
[353014522,1739485953233,-1646.26,0.00015095,2]
[353014523,1739485953243,-1023.76,0.00015095,2]
[353014524,1739485953253,-4943.34,0.00015095,2]
[353014525,1739485953263,-973.76,0.00015095,2]
[353014526,1739485953274,-1078.92,0.00015095,2]
[353014527,1739485953285,-3488.7,0.00015095,2]
[353014528,1739485953297,-9947.08,0.00015095,2]
[353014529,1739485953306,-1167.35,0.00015095,2]
[353014530,1739485953317,-1925.44,0.00015095,2]
[353014531,1739485953326,-3871.01,0.00015095,2]
[353014532,1739485953335,-3374.31,0.00015095,2]
[353014533,1739485953345,-3262.34,0.00015095,2]
[353014534,1739485953355,-3751.7,0.00015095,2]
[353014535,1739485953365,-2216.47,0.00015095,2]
[353014536,1739485953374,-500.0,0.00015095,2]
[353014537,1739485953384,-500.0,0.00015095,2]
[353014538,1739485953395,-2198.57,0.00015095,2]
[353014539,1739485953405,-1272.94,0.00015095,2]
[353014540,1739485953415,-3047.23,0.00015095,2]